Workbook

Sheet Original
A1: http://ca.blackberry.com/content/dam/bbCompany/Desktop/Global/PDF/Investors/Documents/2015/Q3-Fiscal-2015-Financial-Information.pdf
A3: BlackBerry Limited
A4: (United States dollars, in millions, except per share data)(unaudited)
A6: Consolidated Statements of Operations
B8: Three Months Ended | D8: Nine Months Ended
B9: November 29, | C9: November 30, | D9: November 29, | E9: November 30,
B10: 2014 | C10: 2013 | D10: 2014 | E10: 2013
A11: Revenue | B11: $793 | C11: $1,193 | D11: $2,675 | E11: $5,837
A12: Cost of sales
A13: Cost of sales | B13: 376 | C13: 865 | D13: 1,354 | E13: 3,907
A14: Inventory write-down | B14: 7 | C14: 1,081 | D14: 35 | E14: 1,708
A15: Supply commitment charges | B15: — | C15: 511 | D15: — | E15: 818
B16: 383 | C16: 2,457 | D16: 1,389 | E16: 6,433
A17: Gross margin | B17: 410 | C17: -1,264 | D17: 1,286 | E17: -596
A18: Operating expenses
A19: Research and development | B19: 154 | C19: 322 | D19: 577 | E19: 1,040
A20: Selling, marketing and administration | B20: 171 | C20: 538 | D20: 766 | E20: 1,738
A21: Amortization | B21: 74 | C21: 148 | D21: 230 | E21: 499
A22: Impairment of long-lived assets | B22: — | C22: 2,748 | D22: — | E22: 2,748
A23: Debentures fair value adjustment | B23: 150 | C23: 5 | D23: 30 | E23: 5
B24: 549 | C24: 3,761 | D24: 1,603 | E24: 6,030
A25: Operating loss | B25: -139 | C25: -5,025 | D25: -317 | E25: -6,626
A26: Investment loss, net | B26: -21 | C26: — | D26: -67 | E26: -1
A27: Loss before income taxes | B27: -160 | C27: -5,025 | D27: -384 | E27: -6,627
A28: Recovery of income taxes | B28: -12 | C28: -624 | D28: -52 | E28: -1,177
A29: Net loss | B29: -$148 | C29: -$4,401 | D29: -$332 | E29: -$5,450
A30: Loss per share
A31: Basic and diluted | B31: -$0.28 | C31: -$8.37 | D31: -$0.63 | E31: -$10.39
A33: See notes to consolidated financial statements.

Sheet WorkingCopy
B1: Three Months Ended | D1: Nine Months Ended
B2: November 29, | C2: November 30, | D2: November 29, | E2: November 30,
B3: 2014 | C3: 2013 | D3: 2014 | E3: 2013 | F3: Percent difference
A4: Revenue | B4: $793 | C4: $1,193 | D4: $2,675 | E4: $5,837 | F4: =(B4-C4)/ABS(C4) -> -33.5%
A5: Cost of sales | F5: =(B5-C5)/ABS(C5) -> 
A6: Cost of sales | B6: 376 | C6: 865 | D6: 1,354 | E6: 3,907 | F6: =(B6-C6)/ABS(C6) -> -56.5%
A7: Inventory write-down | B7: 7 | C7: 1,081 | D7: 35 | E7: 1,708 | F7: =(B7-C7)/ABS(C7) -> -99.4%
A8: Supply commitment charges | B8: — | C8: 511 | D8: — | E8: 818 | F8: =(B8-C8)/ABS(C8) -> 
B9: 383 | C9: 2,457 | D9: 1,389 | E9: 6,433 | F9: =(B9-C9)/ABS(C9) -> -84.4%
A10: Gross margin | B10: 410 | C10: -1,264 | D10: 1,286 | E10: -596 | F10: =(B10-C10)/ABS(C10) -> 132.4%
A11: Operating expenses | F11: =(B11-C11)/ABS(C11) -> 
A12: Research and development | B12: 154 | C12: 322 | D12: 577 | E12: 1,040 | F12: =(B12-C12)/ABS(C12) -> -52.2%
A13: Selling, marketing and administration | B13: 171 | C13: 538 | D13: 766 | E13: 1,738 | F13: =(B13-C13)/ABS(C13) -> -68.2%
A14: Amortization | B14: 74 | C14: 148 | D14: 230 | E14: 499 | F14: =(B14-C14)/ABS(C14) -> -50.0%
A15: Impairment of long-lived assets | B15: — | C15: 2,748 | D15: — | E15: 2,748 | F15: =(B15-C15)/ABS(C15) -> 
A16: Debentures fair value adjustment | B16: 150 | C16: 5 | D16: 30 | E16: 5 | F16: =(B16-C16)/ABS(C16) -> 2900.0%
B17: 549 | C17: 3,761 | D17: 1,603 | E17: 6,030 | F17: =(B17-C17)/ABS(C17) -> -85.4%
A18: Operating loss | B18: -139 | C18: -5,025 | D18: -317 | E18: -6,626 | F18: =(B18-C18)/ABS(C18) -> 97.2%
A19: Investment loss, net | B19: -21 | C19: — | D19: -67 | E19: -1 | F19: =(B19-C19)/ABS(C19) -> 
A20: Loss before income taxes | B20: -160 | C20: -5,025 | D20: -384 | E20: -6,627 | F20: =(B20-C20)/ABS(C20) -> 96.8%
A21: Recovery of income taxes | B21: -12 | C21: -624 | D21: -52 | E21: -1,177 | F21: =(B21-C21)/ABS(C21) -> 98.1%
A22: Net loss | B22: -$148 | C22: -$4,401 | D22: -$332 | E22: -$5,450 | F22: =(B22-C22)/ABS(C22) -> 96.6%
A23: Loss per share | F23: =(B23-C23)/ABS(C23) -> 
A24: Basic and diluted | B24: -$0.28 | C24: -$8.37 | D24: -$0.63 | E24: -$10.39 | F24: =(B24-C24)/ABS(C24) -> 96.7%

Sheet Sheet3
